Workbook

Sheet Bordereaux
B1: SOMMAIRE
B3: GROS ŒUVRE
B4: CHARPENTE
B5: COUVERTURE
B6: MENUISERIE
B7: PLATRERIE ISOLATION
B8: PEINTURES ET TAPISSERIES
B9: REVETEMENTS DE SOLS ET MURS
A13: Code | B13: Désignation des ouvrages | C13: unité | D13: P.U. Vente H.T.
B15: GROS ŒUVRE
B17: TERRASSEMENTS
B19: TERRASSEMENTS MECANQUES
A21: 1E0020 | B21: Décapage à l'engin de terre végétale ép. ≤ 20cm y compris mise à proximité ou sur camion. | C21: m3 | D21: 8.29
A22: 1E0030 | B22: Décapage à l'engin de terre végétale ép. > 20cm y compris mise à proximité ou sur camion. | C22: m3 | D22: 7.05
A23: 1E1010 | B23: Fouilles à l'engin pour excavation, sol meuble, y compris mise sur berge ou camion. | C23: m3 | D23: 4.98
A24: 1E1020 | B24: Fouilles à l'engin pour excavation, sol compact, y compris mise sur berge ou camion. | C24: m3 | D24: 5.81 | F24: a
A25: 1E2010 | B25: Fouilles à l'engin pour rigoles, sol meuble, y compris mise sur berge ou camion. | C25: m3 | D25: 23.45
A26: 1E2020 | B26: Fouilles à l'engin pour rigoles, sol compact, y compris mise sur berge ou camion. | C26: m3 | D26: 29.3
A27: 1E3010 | B27: Fouilles à l'engin pour trou, sol meuble, y compris mise sur berge ou camion. | C27: m3 | D27: 35.2
A28: 1E3020 | B28: Fouilles à l'engin pour trou, sol compact, y compris mise sur berge ou camion. | C28: m3 | D28: 42.2
A29: 1E4010 | B29: Fouilles à l'engin pour puits, sol meuble, y compris mise sur berge ou camion. | C29: m3 | D29: 38.25
A30: 1E6010 | B30: Remblai à l'engin en terre provenant des fouilles. | C30: m3 | D30: 12.6
A31: 1E6020 | B31: Remblai à l'engin pour plateforme en matériaux d'apport. | C31: m3 | D31: 49.25
A32: 1E7010 | B32: Transport de terre par camion 10t. Jusqu'à 10 km. | C32: m3 | D32: 12.45
A33: 1E80 | B33: Régalage à l'engin de terre végétale. | C33: m3 | D33: 11.75
B35: TERRASSEMENTS MANUELS
A37: 1M2010 | B37: Fouilles manuelles pour rigoles, sole meuble, y compris mise sur berge ou camion. | C37: m3 | D37: 68.6
A38: 1M2010 | B38: Fouilles manuelles pour rigoles, sole compact, y compris mise sur berge ou camion. | C38: m3 | D38: 85.8
A39: 1M2010 | B39: Fouilles manuelles pour trou, sole meuble, y compris mise sur berge ou camion. | C39: m3 | D39: 103
A40: 1M2010 | B40: Fouilles manuelles pour trou, sole compact, y compris mise sur berge ou camion. | C40: m3 | D40: 137.5
A41: 1M2010 | B41: Fouilles manuelles pour puits, sole meuble, y compris mise sur berge ou camion. | C41: m3 | D41: 103
A42: 1M2010 | B42: Fouilles manuelles pour puits, sole compact, y compris mise sur berge ou camion. | C42: m3 | D42: 137.5
A43: 1M2010 | B43: Remblai manuel de terre provenant des fouilles. | C43: m3 | D43: 47.5
A44: 1M2010 | B44: Régalage manuel de terre végétale. | C44: m3 | D44: 27.45
B46: FONDATIONS
A48: 2AT10 | B48: Film antitermites sous fondations. | C48: m2 | D48: 9.7
B50: FONDATIONS COULEES
A52: 2CB050 | B52: Béton de propreté C 16/20 ép. 5 cm. | C52: m3 | D52: 256.5
A53: 2CB060 | B53: Béton de propreté dosé à 250 kg de ciment ép. 10 cm. | C53: m3 | D53: 239.5
A54: 2CB115 | B54: Béton ordinaire (C20/25), pour semelle filante, coulé à pleine fouille. | C54: m3 | D54: 210.5
A55: 2CB125 | B55: Béton ordinaire (C20/25), pour semelle isolée, coulé à pleine fouille. | C55: m3 | D55: 224.5
A56: 2CB150 | B56: Béton de cailloux (250 kg de ciment) pour puits, massifs, redans. | C56: m3 | D56: 223.5
A57: 2CB210 | B57: Béton 350 kg/m3 pour béton armé de semelles filante. | C57: m3 | D57: 195.5
A58: 2CB220 | B58: Béton 350 kg/m3 pour béton armé de semelles isolée. | C58: m3 | D58: 213
A59: 2CB250 | B59: Béton 350 kg/m3 pour béton armé de longrines. | C59: m3 | D59: 220
A60: 2CC010 | B60: Coffrage pour semelle filante ou isolée. | C60: m2 | D60: 42.85
A61: 2CC030 | B61: Coffrage pour massif, socle. | C61: m2 | D61: 46.3
A62: 2CF070 | B62: Armatures HA CFA pour semelles. | C62: kg | D62: 3.05
A63: 2CF170 | B63: Armatures HA CFA pour longrines. | C63: kg | D63: 3.05
A64: 2CF250 | B64: Armatures HA CF pour radier. | C64: kg | D64: 3.05
B66: OUVRAGES VERTICAUX
B68: BETON BANCHE
B70: BETON BANCHE - Béton
A72: 3BB200 | B72: Béton de gravillon type C20/25, pour paroi béton banché ép. ≤ 16 cm. | C72: m3 | D72: 186.5
A73: 3BB210 | B73: Béton banché en C20/25 ép. >16 cm. | C73: m3 | D73: 172.5
A74: 3BB250 | B74: Béton de gravillons C20/25 pour pointes de pignons. | C74: m3 | D74: 190
A75: 3BB260 | B75: Béton de gravillons C25/30 pour paroi béton banché ép. ≤ 16 cm. | C75: m3 | D75: 192.5
A76: 3BB270 | B76: Béton de gravillons C25/30 pour paroi béton banché ép. > 16 cm. | C76: m3 | D76: 178.5
A77: 3BB300 | B77: Béton de gravillons hydrofugé pour paroi béton banché ép. ≤ 16 cm. | C77: m3 | D77: 214.5
A78: 3BB310 | B78: Béton de gravillons hydrofugé pour paroi béton banché ép. > 16 cm. | C78: m3 | D78: 201
B80: BETON BANCHE - Coffrage
A82: 3BC050 | B82: Banchage par panneaux bois, face lisse, pour murs infrastructure. | C82: m2 | D82: 38.55
A83: 3BC060 | B83: Banchage par panneaux plastique pour murs infrastructure. | C83: m2 | D83: 37.05
A84: 3BC100 | B84: Banchage par panneau bois ou similaire, fasse lisse. | C84: m2 | D84: 34.55
A85: 3BC210 | B85: Banchage par panneaux métalliques, fasse lisse, pour murs fermés. | C85: m2 | D85: 18.45
A86: 3BC220 | B86: Banchage par panneaux métalliques, fasse lisse, pour murs ouverts. | C86: m2 | D86: 11.6
A87: 3BC230 | B87: Banchage par panneaux métalliques, fasse lisse, pour murs extérieurs. | C87: m2 | D87: 16.45
A88: 3BC300 | B88: Banchage par panneaux métalliques, fasse lisse, pour pointes de pignons. | C88: m2 | D88: 36.45
A89: 3BC400 | B89: Incorporation huisserie métallique. | C89: u | D89: 22.9
A90: 3BC410 | B90: Négatifs posés dans banches. | C90: u | D90: 49.2
A91: 3BC420 | B91: Boisage et réservations. | C91: m2 | D91: 75.5
B93: BETON BANCHE - Armatures
A95: 3BF100 | B95: Armatures HA de renfort, pour poutres, linteaux, raidisseurs incorporés. | C95: kg | D95: 4.12
A96: 3BF200 | B96: armatures treillis soudés en panneaux standard. | C96: kg | D96: 4.23
B98: MACONNERIES DE BLOCS DE BETON
A100: 3MB105 | B100: Maçonnerie de blocs de béton creux 500/50/200 hourdés au mortier de ciment. | C100: m2 | D100: 40.65
A101: 3MB110 | B101: Maçonnerie de blocs de béton creux 500/100/200 hourdés au mortier de ciment. | C101: m2 | D101: 41.8
A102: 3MB115 | B102: Maçonnerie de blocs de béton creux 500/150/200 hourdés au mortier de ciment. | C102: m2 | D102: 50.4
A103: 3MB120 | B103: Maçonnerie de blocs de béton creux 500/200/200 hourdés au mortier de ciment. | C103: m2 | D103: 55.9
A104: 3MB305 | B104: Maçonnerie de blocs de béton pleins 500/50/200 hourdés au mortier de ciment. | C104: m2 | D104: 35.8
A105: 3MB310 | B105: Maçonnerie de blocs de béton pleins 500/100/200 hourdés au mortier de ciment. | C105: m2 | D105: 58.1
A106: 3MB315 | B106: Maçonnerie de blocs de béton pleins 500/150/200 hourdés au mortier de ciment. | C106: m2 | D106: 73.9
A107: 3MB320 | B107: Maçonnerie de blocs de béton pleins 500/200/200 hourdés au mortier de ciment. | C107: m2 | D107: 74.3
A108: 3MB515 | B108: Maçonnerie de blocs de béton perforés 500/150/200 hourdés au mortier de ciment. | C108: m2 | D108: 63.2
A109: 3MB520 | B109: Maçonnerie de blocs de béton perforés 500/200/200 hourdés au mortier de ciment. | C109: m2 | D109: 74.3
A110: 3MB605 | B110: Majoration pour pose du 1er rang. | C110: m | D110: 7.56
A111: 3MB620 | B111: Maçonnerie de blocs 500/200/200 à joints minces. | C111: m2 | D111: 52.6
A112: 3MB622 | B112: Maçonnerie de blocs 500/200/250 à joints minces. | C112: m2 | D112: 48.65
B114: MACONNERIE DE BETON CELLULAIRE
A116: 3MC110 | B116: Maçonnerie en carreau de béton cellulaire 620/100/250. | C116: m2 | D116: 50.1
A117: 3MC115 | B117: Maçonnerie en blocs de 620/150/250 en béton cellulaire. | C117: m2 | D117: 64.6
A118: 3MC120 | B118: Maçonnerie en blocs de 620/200/250 en béton cellulaire. | C118: m2 | D118: 76.6
A119: 3MC125 | B119: Maçonnerie en blocs de 620/250/250 en béton cellulaire. | C119: m2 | D119: 101.5
A120: 3MC130 | B120: Maçonnerie en blocs de 620/300/250 en béton cellulaire. | C120: m2 | D120: 133
A121: 3MC135 | B121: Maçonnerie en blocs de 620/350/250 en béton cellulaire. | C121: m2 | D121: 141
A122: 3MC315 | B122: Linteau 15 cm ép. en béton cellulaire. | C122: m | D122: 71.7
A123: 3MC320 | B123: Linteau 20 cm ép. en béton cellulaire. | C123: m | D123: 85.7
A124: 3MC325 | B124: Linteau 25 cm ép. en béton cellulaire. | C124: m | D124: 101
A125: 3MC330 | B125: Linteau 30 cm ép. en béton cellulaire. | C125: m | D125: 118
B127: MACONNERIE DE MOELLONS
A129: 3MP310 | B129: Maçonnerie de moellon neuf franc ou 1/2 ferme pour murs ≤ 0,40 ép. à 2 faces alignées. | C129: m3 | D129: 885
A130: 3MP320 | B130: Maçonnerie de moellon neuf ferme ou 1/2 dur pour murs ≤ 0,40 ép. à 2 faces alignées. | C130: m3 | D130: 885
A131: 3MP330 | B131: Maçonnerie de moellon neuf dur pour mur ≤ 0,40. ép. à 2 faces. | C131: m3 | D131: 1023
A132: 3MP340 | B132: Maçonnerie de moellon neuf très dur pour murs ≤ 0,40 ép. à 2 faces alignées. | C132: m3 | D132: 1109
A133: 3MP410 | B133: Maçonnerie de moellon neuf franc ou 1/2 ferme pour murs > 0,40 ép. à 2 faces alignées. | C133: m3 | D133: 868
A134: 3MP420 | B134: Maçonnerie de moellon neuf ferme ou 1/2 dur pour murs > 0,40 ép. à 2 faces alignées. | C134: m3 | D134: 782
A135: 3MP430 | B135: Maçonnerie de moellon neuf dur pour mur > 0,40. ép. à 2 faces. | C135: m3 | D135: 988.5
A136: 3MP601 | B136: Majoration pour appareillage des lits et des joints de dimensions. | C136: m2 | D136: 42.9
A137: 3MP610 | B137: Taille de parement éclaté ou tétué sur moellon franc ou 1/2 ferme. | C137: m2 | D137: 103
A138: 3MP612 | B138: Taille de parement éclaté ou tétué sur moellon ferme ou 1/2 dur. | C138: m2 | D138: 111.5
A139: 3MP614 | B139: Taille de parement éclaté ou tétué sur moellon dur. | C139: m2 | D139: 124.5
A140: 3MP630 | B140: Taille de parement bosselé, smillé ou layé, sur moellon franc ou 1/2 ferme. | C140: m2 | D140: 120
A141: 3MP632 | B141: Taille de parement bosselé, smillé ou layé, sur moellon ferme ou 1/2 dur. | C141: m2 | D141: 129
B143: MACONNERIE DE BRIQUES
A145: 3MT110 | B145: Maçonnerie de briques creuses ordinaires 400/100/250 hourdées au mortier bâtard. | C145: m2 | D145: 51.6
A146: 3MT115 | B146: Maçonnerie de briques creuses ordinaires 400/150/250 hourdées au mortier bâtard. | C146: m2 | D146: 58
A147: 3MT116 | B147: Maçonnerie de briques creuses ordinaires 570/150/200 hourdées au mortier bâtard. | C147: m2 | D147: 58.7
A148: 3MT117 | B148: Maçonnerie de briques creuses ordinaires 570/150/300 hourdées au mortier bâtard. | C148: m2 | D148: 56
A149: 3MT120 | B149: Maçonnerie de briques creuses ordinaires 400/200/250 hourdées au mortier bâtard. | C149: m2 | D149: 62.9
A150: 3MT122 | B150: Maçonnerie de briques creuses ordinaires 570/200/300 hourdées au mortier bâtard. | C150: m2 | D150: 62
A151: 3MT220 | B151: Maçonnerie de briques "G" 500/200/200 hourdées au mortier bâtard. | C151: m2 | D151: 69.7
A152: 3MT221 | B152: Maçonnerie de briques "G" 570/200/200 hourdées au mortier bâtard. | C152: m2 | D152: 69.7
A153: 3MT222 | B153: Maçonnerie de briques "G" 570/200/300 hourdées au mortier bâtard. | C153: m2 | D153: 71.5
A154: 3MT225 | B154: Maçonnerie de briques creuses "G" 500/250/200 hourdées au mortier bâtard. | C154: m2 | D154: 88.3
A155: 3MT230 | B155: Maçonnerie de briques creuses "G" 500/300/200 hourdées au mortier bâtard. | C155: m2 | D155: 95.6
A156: 3MT305 | B156: Majoration pour pose 1er rang. | C156: m | D156: 7.68
A157: 3MT320 | B157: Maçonnerie de briques BGV thermo 500/200/314. | C157: m2 | D157: 55.6
A158: 3MT325 | B158: Maçonnerie de briques BGV thermo 500/200/212. | C158: m2 | D158: 65.4
A159: 3MT420 | B159: Maçonnerie de 0,105 ép. en briques perforées 220/105/60 hourdées au mortier bâtard. | C159: m2 | D159: 75
A160: 3MT425 | B160: Maçonnerie de 0,105 ép. en briques perforées 330/105/55 hourdées au mortier bâtard. | C160: m2 | D160: 64.7
A161: 3MT470 | B161: Maçonnerie de 0,22 ép. en briques perforées 220/105/60 hourdées au mortier bâtard. | C161: m2 | D161: 116.5
A162: 3MT520 | B162: Maçonnerie de 0,105 ép. en briques pleines 220/105/60 hourdées au mortier bâtard. | C162: m2 | D162: 138.5
A163: 3MT525 | B163: Maçonnerie de 0,105 ép. en briques pleines 330/105/55 hourdées au mortier bâtard. | C163: m2 | D163: 63.8
A164: 3MT570 | B164: Maçonnerie de 0,22 ép. en briques pleines 220/105/60 hourdées au mortier bâtard, compris rejointement en creux une face. | C164: m2 | D164: 245.5
A165: 3MT611 | B165: Maçonnerie de 0,105 ép. en briques perforées de parement 65/105/220, compris rejointement en creux une face. | C165: m2 | D165: 157.5
A166: 3MT620 | B166: Maçonnerie de 0,105 ép. en briques perforées de parement 54/105/220, compris rejointement en creux une face. | C166: m2 | D166: 171
A167: 3MT622 | B167: Maçonnerie de 0,105 ép. en briques pleines de parement 58/105/220, compris rejointement en creux une face. | C167: m2 | D167: 170
A168: 3MT650 | B168: Maçonnerie de 0,20 ép. en briques perforées de parement 65/105/220, compris rejointement en creux une face. | C168: m2 | D168: 206.5
A169: 3MT715 | B169: Chaperon 0,33 largeur en briques spéciales 100/65/330. | C169: m | D169: 106.5
A170: 3MT720 | B170: Appui de baie 0,27 largeur en briques spéciales 120/60/270. | C170: m | D170: 112
A171: 3MT725 | B171: Appui de baie 0,35 largeur en briques spéciales 120/60/350. | C171: m | D171: 130
A172: 3MZ050 | B172: Rampannage béton pour mur de 0,15 ép. | C172: m | D172: 36.55
A173: 3MZ055 | B173: Rampannage béton pour mur de 0,20 ép. | C173: m | D173: 39.3
A174: 3MZ060 | B174: Rampannage béton pour mur de 0,25 ép. | C174: m | D174: 44.35
A175: 3MZ075 | B175: Arase béton ≤0,10 ht pour mur de 0,20 ép. | C175: m | D175: 17.35
A176: 3MZ110 | B176: Taille de feuillure dans maçonnerie creuse. | C176: m | D176: 3.43
A177: 3MZ120 | B177: Taille de feuillure dans maçonnerie pleine. | C177: m | D177: 6.86
B179: OSSATURE B.A.
A181: 3OCL15 | B181: Chaînages verticaux coulés dans blocs spéciaux 0,15 ép. y compris armature et remplissage béton. | C181: m | D181: 16.4
A182: 3OCL20 | B182: Chaînages verticaux coulés dans blocs spéciaux 0,20 ép. y compris armature et remplissage béton. | C182: m | D182: 18.3
A183: 3OCL50 | B183: Chaînages verticaux coulés dans briques spéciales 0,20 ép. y compris armature et remplissage béton. | C183: m | D183: 20.15
A184: 3OPB10 | B184: Béton dosé à 350 kg de ciment pour BA de poteaux-trumeaux section ≤ 5 dm². | C184: m3 | D184: 281.5
A185: 3OPB20 | B185: Béton dosé à 350 kg de ciment pour BA de poteaux-trumeaux section > 5 dm². | C185: m3 | D185: 264.5
A186: 3OPC10 | B186: Coffrage brut de BA pour poteau trumeau section ≤ 5 dm². | C186: m2 | D186: 88.6
A187: 3OPC20 | B187: Coffrage brut de BA pour poteau trumeau section > 5 dm². | C187: m2 | D187: 74.4
A188: 3OPC50 | B188: Coffrage soigné de BA pour poteau trumeau section ≤ 5 dm². | C188: m2 | D188: 86.8
A189: 3OPC60 | B189: Coffrage soigné de BA pour poteau trumeau section > 5 dm². | C189: m2 | D189: 79.9
A190: 3OPZ10 | B190: Feuillure réservée dans béton armé. | C190: m | D190: 3.8
A191: 3OZF20 | B191: Armatures HA CFA pour tous ouvrages en ossature verticale. | C191: kg | D191: 3.22
A192: 3OZP10 | B192: Doublage de béton armé par planelle terre cuite de 3 cm. | C192: m2 | D192: 22.3
A193: 3OZP20 | B193: Doublage de béton armé par planelle béton de 5 cm. | C193: m2 | D193: 23.65
B195: OUVRAGES HORIZONTAUX
B197: DALLAGES
A199: 4DA010 | B199: Forme en tout-venant, ép. jusqu'à 30 cm, compris compactage. | C199: m3 | D199: 82.6
A200: 4DA020 | B200: Forme en gravillons, ép. jusqu'à 30 cm, compris compactage. | C200: m3 | D200: 124
A201: 4DA040 | B201: Forme en sable, ép. jusqu'à 30 cm, compris compactage. | C201: m3 | D201: 122
A202: 4DA520 | B202: Ecran d'étanchéité en polyane 200 microns. | C202: m2 | D202: 2.47
A203: 4DA550 | B203: Film antitermites sous dallage. | C203: m2 | D203: 7.98
A204: 4DA620 | B204: Polystyrène expansé classe 4 ép. 4 cm. | C204: m2 | D204: 9.62
A205: 4DA630 | B205: Polystyrène expansé classe 4 ép. 6 cm. | C205: m2 | D205: 12.25
A206: 4DA714 | B206: Polystyrène expansé classe 4 ép. 4 cm, en relevés. | C206: m2 | D206: 20.2
A207: 4DA716 | B207: Polystyrène expansé classe 4 ép. 6 cm, en relevés. | C207: m2 | D207: 22.95
A208: 4DB010 | B208: Corps de dallage en béton de gravillons, C20/25, ép. ≤ 12 cm. | C208: m3 | D208: 207
A209: 4DB012 | B209: Corps de dallage en béton de gravillons, C25/30, ép. ≤ 12 cm. | C209: m3 | D209: 213
A210: 4DB020 | B210: Corps de dallage en béton de gravillons, C20/25, ép. ≤ 20 cm. | C210: m3 | D210: 190
A211: 4DB022 | B211: Corps de dallage en béton de gravillons, C25/30, ép. ≤ 20 cm. | C211: m3 | D211: 195.5
A212: 4DB100 | B212: Treillis soudé. | C212: kg | D212: 2.52
A213: 4DB150 | B213: Armatures HA de renfort. | C213: kg | D213: 3.98
A214: 4DB200 | B214: Surfaçage de béton de dallages. | C214: m2 | D214: 3.43
A215: 4DB300 | B215: Plus-value pour façon de pente. | C215: m2 | D215: 6.86
A216: 4DC010 | B216: Coffrage ordinaire de rive. | C216: m2 | D216: 36.85
A217: 4DC020 | B217: Coffrage soigné de rive de dallage. | C217: m2 | D217: 48.9
A218: 4DJ010 | B218: Joint de construction. | C218: m | D218: 10
A219: 4DJ020 | B219: Joint de désolidarisation. | C219: m | D219: 3.96
A220: 4DJ030 | B220: Joint de retrait (scié). | C220: m | D220: 8.15
B222: OSSATURE HORIZONTALE
A224: 4OCB10 | B224: Béton C25/30 pour BA. : poutres Linteau chainage attenants. | C224: m3 | D224: 213
A225: 4OCB20 | B225: Béton C25/30 pour BA. : poutres Linteau chainage isolés. | C225: m3 | D225: 281.5
A226: 4OCB40 | B226: Béton C25/30 BA. : Auvent, balcon, palier, perron isolés. | C226: m3 | D226: 281.5
A227: 4OCC10 | B227: Coffrage brut de BA. : poutres linteau chainage. | C227: m2 | D227: 79.9
A228: 4OCC50 | B228: Coffrage soigné de BA. Pour poutre linteau chainage. | C228: m2 | D228: 97.1
A229: 4OCH15 | B229: Chaînage isolé dans blocs U pour murs 0,15 ép. cis béton et aciers. | C229: m | D229: 24.4
A230: 4OCH20 | B230: Chaînage isolé dans blocs U pour murs 0,20 ép. cis béton et aciers. | C230: m | D230: 26
A231: 4OCL15 | B231: Linteau isolé dans blocs U pour murs 0,15 ép. cis béton et aciers. | C231: m | D231: 30.15
A232: 4OCL20 | B232: Linteau isolé dans blocs U pour murs 0,20 ép. cis béton et aciers. | C232: m | D232: 31.75
A233: 4OCZ10 | B233: Feuillure réservée dans béton armé. | C233: m | D233: 3.8
A234: 4OF10 | B234: Armatures HA CFA pour tous ouvrage en ossature horizontale. | C234: kg | D234: 3.22
A235: 4OF15 | B235: Armatures HA CF pour tous ouvrage en ossature horizontale. | C235: kg | D235: 3.55
A236: 4OF20 | B236: Armatures HA pour tous ouvrage en ossature horizontale. | C236: kg | D236: 4.32
A237: 4OZC10 | B237: Corniche préfabriquée en U type quart de rond ou doucine 20 cm ht y compris remplissage béton et armatures. Béton clair. | C237: m | D237: 103
... 1489 more rows

Sheet DQE TYPE
A1: RESTRUCTURATION D'UN ENSEMBLE IMMOBILIER 34 logements collectifs & 22 individuels groupés
A3: 72000 LE MANS
A5: LOT N°07 - Peinture
A8: N° | G8: Désignations | O8: rep | U8: U | V8: Quantité
A11: 07.3 | G11: PEINTURE INTERIEURE
B13: 07.3.1 | H13: Peinture en plafonds
C15: 07.3.1.1 | I15: Peinture lavable en dispersion aqueuse
D17: 07.3.1.1.1 | J17: Logements 1 :
L19: Entrée :
L20: 2,62 X 3,12 = | P20: =2.62*3.12 -> 8.1744
L22: Cuisine :
L23: 3,82 X 3,93 = | M23: =3.82*3.93 -> 15.0126
L24: ded. 0,91 X 2,60 = | M24: =0.91*2.6 -> 2.366
M25: Reste = | P25: =M23-M24 -> 12.6466
P26: Ens. = | Q26: =SUM(P20:P25) -> 20.821 | U26: m2 | V26: 1500.35

Sheet Feuil1
C1: Logement 4
C2: EU/EV
A3: Points particuliers | E3: Cote fil d'eau | F3: Cote tampon | G3: Profondeur | H3: Dimensions regard | J3: Tronçons | K3: Regards 30/30/35ht | L3: Coudes | M3: Culottes / T
A4: Fil d'eau en "1" | E4: 59,10 | F4: 59,40 | G4: =F4-E4 -> 0.3 | H4: coude | J4: 1-4 | L4: 3 | M4: 3
A5: Fil d'eau en "2" | E5: 59,10 | F5: 59,40 | G5: =F5-E5 -> 0.3 | H5: coude | J5: 2-4 | L5: 2 | M5: 1
A6: Fil d'eau en "3" | E6: =59.1-(5.1*0.02) -> 58.998 | F6: 59,40 | G6: 0.402 | H6: aucun | J6: 3-4 | L6: 1
A7: Fil d'eau en "4" | E7: 58,96 | F7: 59,25 | G7: 0.29 | H7: 20/20/30ht | J7: 4 | K7: 2
C10: Logement 3
C11: EU/EV
A12: Points particuliers | E12: Cote fil d'eau | F12: Cote tampon | G12: Profondeur | H12: Dimensions regard | J12: Tronçons | K12: Regards 30/30/35ht | L12: Coudes | M12: Culottes / T
A13: Fil d'eau en "1" | E13: 59,10 | F13: 59,40 | G13: =F13-E13 -> 0.3 | H13: coude | J13: 1-4 | L13: 2 | M13: 2
A14: Fil d'eau en "2" | E14: 59,10 | F14: 59,40 | G14: =F14-E14 -> 0.3 | H14: coude | J14: 2-4 | L14: 2 | M14: 2
A15: Fil d'eau en "3" | E15: 59,10 | F15: 59,40 | G15: 0.3 | H15: coude | J15: 3-4 | L15: 1
A16: Fil d'eau en "4" | E16: 58,96 | F16: 59,25 | G16: 0.29 | H16: 20/20/30ht | J16: 5-4 | L16: 3
A17: Fil d'eau en "5" | E17: 59,10 | F17: 59,40 | G17: =F17-E17 -> 0.3 | H17: coude | J17: 4 | K17: 2 | L17: 1
C19: Logement 4
C20: EP
A21: Points particuliers | E21: Cote fil d'eau | F21: Cote tampon | G21: Profondeur | H21: Dimensions regard | J21: Tronçons | K21: Regards 30/30/35ht | L21: Réhausse 30/30/30ht | M21: Coudes | N21: Culottes / T
A22: Fil d'eau en "A" | E22: 58,32 | F22: 58,65 | G22: =F22-E22 -> 0.33 | H22: 30/30/35ht | J22: A | K22: 1 | M22: 1
A23: Fil d'eau en "B" | E23: 58,15 | F23: 58,65 | G23: =F23-E23 -> 0.5 | H23: 30/30/35ht | J23: B | K23: 1 | L23: 1 | M23: 1
A24: Fil d'eau en "C" | E24: 58.75 | F24: 59,25 | G24: 0.5 | H24: 30/30/35ht | J24: C | K24: 1 | L24: 1 | N24: 1
A25: Fil d'eau en "D" | E25: 58,72 | F25: 59,25 | G25: 0.53 | H25: 30/30/35ht | J25: D | K25: 1 | L25: 1 | M25: 1
A26: Fil d'eau en "E" | E26: 58,20 | F26: 58,65 | G26: =F26-E26 -> 0.45 | H26: 30/30/35ht | J26: E | K26: 1 | L26: 1
C29: Logement 3
C30: EP
A31: Points particuliers | E31: Cote fil d'eau | F31: Cote tampon | G31: Profondeur | H31: Dimensions regard | J31: Tronçons | K31: Regards 30/30/35ht | L31: Réhausse 30/30/30ht | M31: Coudes | N31: Culottes / T
A32: Fil d'eau en "A" | E32: 58,94 | F32: 59,25 | G32: =F32-E32 -> 0.31 | H32: 30/30/35ht | J32: A | K32: 1
A33: Fil d'eau en "B" | E33: 58,60 | F33: 59,25 | G33: =F33-E33 -> 0.65 | H33: 30/30/35ht | J33: B | K33: 1 | L33: 1 | N33: 1
A34: Fil d'eau en "C" | E34: 58.76 | F34: 59,25 | G34: 0.49 | H34: 30/30/35ht | J34: C | K34: 1 | L34: 1 | M34: 1 | N34: 1
A35: Fil d'eau en "D" | E35: 58,77 | F35: 59,25 | G35: 0.48 | H35: 30/30/35ht | J35: D | K35: 1 | L35: 1 | M35: 1
A36: Fil d'eau en "E" | E36: 58,79 | F36: 59,25 | G36: =F36-E36 -> 0.46 | H36: 30/30/35ht | J36: E | K36: 1 | L36: 1
